{"text_format":"3","workbook":"xlsx","n_sheets":2,"sheets":["KĀ IZMANTOT ŠO DARBGRĀMATU","KLASES ŽURNĀLS"],"not_rendered":{"defined_names":5},"read":"whole","date_system":"1900"}

{"sheet":"KĀ IZMANTOT ŠO DARBGRĀMATU","index":0,"n_rows":10,"n_cols":2,"rows_kept":10}
[null,"NORĀDĪJUMI"]
[null,"Izmantojiet KLASES ŽURNĀLAS darblapu, lai aprēķinātu atzīmes, katram uzdevumam piešķirot noteiktu punktu skaitu. "]
[null,"Norādījumi. Noteikti saglabājiet vērtējumu dublējumkopijas."]
[null,"1. Ierakstiet savas mācību iestādes nosaukums, mācību priekšmeta informāciju, skolēnu vārdus un skolēnu ID (nav obligāti).   "]
[null,"2. Pielāgojiet vērtējumu un vidējo atzīmju tabulu atbilstoši parasti izmantojamajai vērtēšanas sistēmai."]
[null,"3. Ievadiet uzdevumu vai testu nosaukumus, sākot ar šūnu G7, kā arī norādiet, cik punkti ir piešķirti katram uzdevumam (piem., \"Gala\" un \"50 %\"). "]
[null,"4. Ievadiet katra skolēna rezultātu attiecībā uz katru uzdevumu vai zināšanu pārbaudi. Kolonnas \"Rezultāts,\" \"Ltr vērtējums\" un \"Vidējā atzīme\" tiek aprēķinātas automātiski, bet tās var ignorēt, ja vēlaties. Atbilstoši vērtējumu aprēķina veidam, vidējā atzīme un gala atzīme nav pabeigtas, kamēr nav ievadīti visi rezultāti."]
[null,"Ja vēlaties mainīt drukājamo apgabalu, izmantojiet komandu \"Drukas apgabals\" izvēlnē Lapas izkārtojums."]
[null,"Rezultāts, Ltr vērtējums un vidējā atzīme nav derīgi, kamēr visi uzdevumi un testi nav pabeigti 100 % apmērā. "]
[null,"Ievadiet katru uzdevumu vai testu un tā procentuālo daļu no kopējās atzīmes šūnās no G7 līdz W8."]

{"sheet":"KLASES ŽURNĀLS","index":1,"n_rows":20,"n_cols":23,"rows_kept":20,"merged":[[5,1,5,5],[6,1,6,3],[6,4,6,5],[7,1,8,3],[7,4,7,5],[8,4,8,5],[15,1,15,5],[16,1,16,2],[17,1,17,2],[18,1,18,2],[19,1,19,2]]}
[null,"MĀCĪBU IESTĀDES NOSAUKUMS"]
[]
[{"$nulls":6},"Rezultāts",{"v":0,"d":"0%"},{"v":0.6,"d":"60%"},{"v":0.63,"d":"63%"},{"v":0.67,"d":"67%"},{"v":0.7,"d":"70%"},{"v":0.73,"d":"73%"},{"v":0.77,"d":"77%"},{"v":0.8,"d":"80%"},{"v":0.83,"d":"83%"},{"v":0.87,"d":"87%"},{"v":0.9,"d":"90%"},{"v":0.93,"d":"93%"},{"v":0.97,"d":"97%"}]
[{"$nulls":6},"Ltr vērtējums","S","D-","D","D+","C-","C","C+","B-","B","B+","A-","A","A+"]
[{"$nulls":6},"VIDĒJĀ ATZĪME",0,0.67,1,1.33,1.67,2,2.33,2.67,3,3.33,3.67,4,4]
[null,"Skolotāja vārds"]
[null,"Mācību priekšmets/projekts",null,null,"Uzdevuma vai testa nosaukums"]
[null,"Gads/semestris/ceturksnis",null,null,"Procentuālā vērtība (kopā jābūt 100%)"]
[{"$nulls":4},{"$f":"\"Kopējā procentuālā vērtība: \"&SUM(G8:W8)*100&\"%\"","v":"Kopējā procentuālā vērtība: 0%"}]
[null,"Skolēna vārds, uzvārds","Skolēna ID","Rezultāts","Ltr vērtējums","VIDĒJĀ ATZĪME","Kolonna6","Kolonna7","Kolonna8","Kolonna9","Kolonna10","Kolonna11","Kolonna12","Kolonna13","Kolonna14","Kolonna15","Kolonna16","Kolonna17","Kolonna18","Kolonna19","Kolonna20","Kolonna21","Kolonna22"]
[{"$nulls":3},{"$f":"(IF(SUM(Vērtējumi[[#This Row],[Kolonna6]:[Kolonna22]]),ROUND(SUMPRODUCT($G$8:$W$8,Vērtējumi[[#This Row],[Kolonna6]:[Kolonna22]]),2),\"\"))","v":""},{"$f":"IF(Vērtējumi[[#This Row],[Rezultāts]]<>\"\",HLOOKUP(Vērtējumi[[#This Row],[Rezultāts]],VērtējumuTabula,2),\"\")","v":""},{"$f":"IF(Vērtējumi[[#This Row],[Rezultāts]]<>\"\",HLOOKUP(Vērtējumi[[#This Row],[Rezultāts]],VērtējumuTabula,3),\"\")","v":""}]
[{"$nulls":3},{"$f":"(IF(SUM(Vērtējumi[[#This Row],[Kolonna6]:[Kolonna22]]),ROUND(SUMPRODUCT($G$8:$W$8,Vērtējumi[[#This Row],[Kolonna6]:[Kolonna22]]),2),\"\"))","v":""},{"$f":"IF(Vērtējumi[[#This Row],[Rezultāts]]<>\"\",HLOOKUP(Vērtējumi[[#This Row],[Rezultāts]],VērtējumuTabula,2),\"\")","v":""},{"$f":"IF(Vērtējumi[[#This Row],[Rezultāts]]<>\"\",HLOOKUP(Vērtējumi[[#This Row],[Rezultāts]],VērtējumuTabula,3),\"\")","v":""}]
[{"$nulls":3},{"$f":"(IF(SUM(Vērtējumi[[#This Row],[Kolonna6]:[Kolonna22]]),ROUND(SUMPRODUCT($G$8:$W$8,Vērtējumi[[#This Row],[Kolonna6]:[Kolonna22]]),2),\"\"))","v":""},{"$f":"IF(Vērtējumi[[#This Row],[Rezultāts]]<>\"\",HLOOKUP(Vērtējumi[[#This Row],[Rezultāts]],VērtējumuTabula,2),\"\")","v":""},{"$f":"IF(Vērtējumi[[#This Row],[Rezultāts]]<>\"\",HLOOKUP(Vērtējumi[[#This Row],[Rezultāts]],VērtējumuTabula,3),\"\")","v":""}]
[{"$nulls":3},{"$f":"(IF(SUM(Vērtējumi[[#This Row],[Kolonna6]:[Kolonna22]]),ROUND(SUMPRODUCT($G$8:$W$8,Vērtējumi[[#This Row],[Kolonna6]:[Kolonna22]]),2),\"\"))","v":""},{"$f":"IF(Vērtējumi[[#This Row],[Rezultāts]]<>\"\",HLOOKUP(Vērtējumi[[#This Row],[Rezultāts]],VērtējumuTabula,2),\"\")","v":""},{"$f":"IF(Vērtējumi[[#This Row],[Rezultāts]]<>\"\",HLOOKUP(Vērtējumi[[#This Row],[Rezultāts]],VērtējumuTabula,3),\"\")","v":""}]
[{"$nulls":3},{"$f":"(IF(SUM(Vērtējumi[[#This Row],[Kolonna6]:[Kolonna22]]),ROUND(SUMPRODUCT($G$8:$W$8,Vērtējumi[[#This Row],[Kolonna6]:[Kolonna22]]),2),\"\"))","v":""},{"$f":"IF(Vērtējumi[[#This Row],[Rezultāts]]<>\"\",HLOOKUP(Vērtējumi[[#This Row],[Rezultāts]],VērtējumuTabula,2),\"\")","v":""},{"$f":"IF(Vērtējumi[[#This Row],[Rezultāts]]<>\"\",HLOOKUP(Vērtējumi[[#This Row],[Rezultāts]],VērtējumuTabula,3),\"\")","v":""}]
[]
[null,"Mācību priekšmeta kopsavilkums",null,"Rezultāts","Ltr vērtējums","VIDĒJĀ ATZĪME","","","","","","","","","","",""]
[null," Vidējais",null,{"$f":"IFERROR(AVERAGE(Vērtējumi[[#All],[Rezultāts]]),0)","v":{"v":0,"d":"0.0%"}},{"$f":"IFERROR(HLOOKUP(D18,VērtējumuTabula,2),\"\")","v":"S"},{"$f":"IFERROR(AVERAGE(Vērtējumi[[#All],[VIDĒJĀ ATZĪME]]),0)","v":0},"","","","","","","","","","","","","","","","",""]
[null," Labākais rezultāts",null,{"$f":"IFERROR(MAX(Vērtējumi[[#All],[Rezultāts]]),0)","v":{"v":0,"d":"0.0%"}},{"$f":"IFERROR(HLOOKUP(D19,VērtējumuTabula,2),\"\")","v":"S"},{"$f":"IFERROR(MAX(Vērtējumi[[#All],[VIDĒJĀ ATZĪME]]),0)","v":0},"","","","","","","","","","","","","","","","",""]
[null," Sliktākais rezultāts",null,{"$f":"IFERROR(MIN(Vērtējumi[[#All],[Rezultāts]]),0)","v":{"v":0,"d":"0.0%"}},{"$f":"IFERROR(HLOOKUP(D20,VērtējumuTabula,2),\"\")","v":"S"},{"$f":"IFERROR(MIN(Vērtējumi[[#All],[VIDĒJĀ ATZĪME]]),0)","v":0},"","","","","","","","","","","","","","","","",""]